bitfinex/quotes_BTCUSD_20250108
["timestamp","ask_amount","ask_price","bid_price","bid_amount"]
[1736337297379,4.07528103,95196.0,95193.0,0.15]
[1736337298541,3.99878103,95196.0,95195.0,0.1]
[1736337298750,3.99878103,95196.0,95195.0,0.25]
[1736337299421,3.99778103,95196.0,95195.0,0.25]
[1736337299786,3.99878103,95196.0,95195.0,0.25]
[1736337300209,3.99778103,95196.0,95195.0,0.25]
[1736337300449,3.99778103,95196.0,95195.0,0.1]
[1736337300679,3.99878103,95196.0,95195.0,0.1]
[1736337300872,3.99878103,95196.0,95195.0,0.35429976]
[1736337301100,3.99778103,95196.0,95195.0,0.45429976]
[1736337301673,3.99778103,95196.0,95195.0,0.51369976]
[1736337302079,3.99778103,95196.0,95195.0,0.52143161]
[1736337302488,3.99878103,95196.0,95195.0,0.52143161]
[1736337302694,3.99878103,95196.0,95195.0,0.51369976]
[1736337302898,3.99778103,95196.0,95195.0,0.54443161]
[1736337303331,3.99778103,95196.0,95195.0,0.54543161]
[1736337303531,3.99778103,95196.0,95195.0,0.53769976]
[1736337305938,3.99778103,95196.0,95195.0,0.4104]
[1736337306603,3.99778103,95196.0,95195.0,0.3104]
[1736337306956,3.99778103,95196.0,95195.0,0.4094]
[1736337307159,4.04368103,95196.0,95193.0,0.23610296]
[1736337307362,0.18199976,95195.0,95190.0,0.23610296]
[1736337307572,0.0777,95195.0,95190.0,0.23610296]
[1736337307775,3.99878103,95196.0,95191.0,0.25]
[1736337308025,3.99878103,95196.0,95195.0,0.1]
[1736337308230,3.99878103,95196.0,95193.0,0.1]
[1736337309325,3.99778103,95196.0,95193.0,0.1]
[1736337309502,3.99978103,95196.0,95193.0,0.1]
[1736337309902,3.99778103,95196.0,95193.0,0.1]
[1736337310308,3.99878103,95196.0,95193.0,0.1]
[1736337310509,3.99878103,95196.0,95195.0,0.35]
[1736337310687,3.99878103,95196.0,95195.0,0.53661976]
[1736337311105,3.99878103,95196.0,95195.0,0.54435161]
[1736337313396,3.99778103,95196.0,95195.0,0.54435161]
[1736337313804,3.99878103,95196.0,95195.0,0.54435161]
[1736337314219,3.99778103,95196.0,95195.0,0.54435161]
[1736337314444,4.07488103,95196.0,95195.0,0.15773185]
[1736337314642,4.07488103,95196.0,95195.0,0.00873185]
[1736337314850,4.07488103,95196.0,95195.0,0.001]
[1736337315918,4.07488103,95196.0,95195.0,0.1]
[1736337316353,4.07588103,95196.0,95195.0,0.1]
[1736337318498,3.99878103,95196.0,95195.0,0.1]
[1736337319733,3.99778103,95196.0,95195.0,0.1]
[1736337319942,3.99778103,95196.0,95195.0,0.2]
[1736337320153,3.99878103,95196.0,95195.0,0.20773185]
[1736337320796,3.99878103,95196.0,95195.0,0.46203161]
[1736337321006,3.99878103,95196.0,95195.0,0.72118503]
[1736337321210,3.99778103,95196.0,95195.0,0.72118503]
[1736337321629,3.99778103,95196.0,95195.0,0.78050503]
[1736337321835,3.99778103,95196.0,95195.0,0.54435161]
[1736337322778,3.99778103,95196.0,95195.0,0.36203161]
[1736337323061,3.99778103,95196.0,95195.0,0.42135161]
[1736337323275,3.99778103,95196.0,95195.0,0.41361976]
[1736337323482,3.99778103,95196.0,95195.0,0.41461976]
[1736337323966,3.99778103,95196.0,95195.0,0.30932]
[1736337324125,3.99778103,95196.0,95195.0,0.31032]
[1736337324885,3.99778103,95196.0,95195.0,0.41032]
[1736337325041,3.99778103,95196.0,95195.0,0.64655664]
[1736337325237,3.99778103,95196.0,95195.0,0.65428849]
[1736337325871,3.99778103,95196.0,95195.0,0.41805185]
[1736337326270,4.02618103,95196.0,95195.0,0.25873185]
[1736337326471,4.02618103,95196.0,95195.0,0.25]
[1736337326886,3.97848103,95196.0,95195.0,0.25]
[1736337327026,3.89778103,95196.0,95195.0,0.25]
[1736337327234,3.89778103,95196.0,95195.0,0.35]
[1736337327447,3.89778103,95196.0,95195.0,0.45429976]
[1736337327657,3.89778103,95196.0,95195.0,0.46203161]
[1736337328485,3.89778103,95196.0,95195.0,0.48503161]
[1736337328904,3.89778103,95196.0,95195.0,0.38503161]
[1736337329117,3.89778103,95196.0,95195.0,0.46203161]
[1736337329340,3.89778103,95196.0,95195.0,0.48503161]
[1736337330163,3.89778103,95196.0,95195.0,0.54435161]
[1736337330433,3.81923211,95196.0,95195.0,0.54435161]
[1736337331364,3.81923211,95196.0,95195.0,0.54535161]
[1736337332583,3.81923211,95196.0,95195.0,0.48603161]
[1736337332796,3.81923211,95196.0,95195.0,0.54535161]
[1736337333001,3.94673211,95196.0,95195.0,0.00873185]
[1736337333208,3.90133211,95196.0,95195.0,0.34490989]
[1736337333410,3.90133211,95196.0,95195.0,0.58717804]
[1736337333821,3.90133211,95196.0,95195.0,0.59236352]
[1736337334267,3.90133211,95196.0,95195.0,0.35618548]
[1736337335427,3.90133211,95196.0,95195.0,0.35773185]
[1736337336864,3.81923211,95196.0,95195.0,0.35773185]
[1736337337745,3.81923211,95196.0,95195.0,0.48503161]
[1736337338385,3.81923211,95196.0,95195.0,0.54435161]
[1736337338660,3.81923211,95196.0,95195.0,0.41705185]
[1736337338883,3.81923211,95196.0,95195.0,0.59390947]
[1736337339087,3.81923211,95196.0,95195.0,0.64549762]
[1736337339322,3.94333211,95196.0,95195.0,0.21689515]
[1736337339500,4.04763187,95196.0,95195.0,0.224627]
[1736337339719,4.04763187,95196.0,95193.0,0.21589515]
[1736337339944,0.1282,95194.0,95193.0,0.21589515]
[1736337340094,0.23249976,95194.0,95193.0,0.08779515]
[1736337340686,0.23249976,95194.0,95164.0,0.51751036]
[1736337340687,0.210155,95168.0,95164.0,0.1]
[1736337340908,0.210155,95168.0,95165.0,0.15]
[1736337341104,0.210155,95168.0,95165.0,0.15916334]
[1736337341310,0.210155,95168.0,95165.0,0.00916334]
[1736337341676,0.210155,95168.0,95164.0,0.1]
[1736337341874,0.21020578,95168.0,95164.0,0.1]
[1736337342118,5.078e-05,95168.0,95165.0,0.00916334]
[1736337342312,5.078e-05,95168.0,95167.0,0.1]
[1736337342689,5.078e-05,95168.0,95167.0,0.36020826]
[1736337342911,5.078e-05,95168.0,95167.0,0.3591575]
[1736337343154,5.078e-05,95168.0,95167.0,0.48645726]
[1736337343699,5.078e-05,95168.0,95167.0,0.49686767]
[1736337344778,3.81923211,95196.0,95182.0,0.1]
[1736337345004,3.81928292,95196.0,95195.0,0.15]
[1736337345462,3.81928292,95196.0,95195.0,0.15076106]
[1736337350036,3.82128292,95196.0,95195.0,0.15076106]
[1736337350503,3.82028292,95196.0,95195.0,0.15076106]
[1736337350961,3.82228292,95196.0,95195.0,0.15076106]
[1736337351196,3.82028292,95196.0,95195.0,0.15076106]
[1736337351575,3.82228292,95196.0,95195.0,0.15076106]
[1736337354339,3.82028292,95196.0,95195.0,0.15076106]
[1736337354542,3.82228292,95196.0,95195.0,0.15076106]
[1736337358947,3.82028292,95196.0,95195.0,0.15076106]
[1736337359459,3.82228292,95196.0,95195.0,0.15076106]
[1736337359815,3.82028292,95196.0,95195.0,0.15076106]
[1736337360027,3.82128292,95196.0,95195.0,0.15076106]
[1736337363462,3.82028292,95196.0,95195.0,0.15076106]
[1736337364054,3.82128292,95196.0,95195.0,0.46085606]
[1736337364465,3.82128292,95196.0,95195.0,0.47037779]
[1736337364878,3.82128292,95196.0,95195.0,0.57037779]
[1736337367504,3.82128292,95196.0,95195.0,0.56837779]
[1736337368349,3.82028292,95196.0,95195.0,0.56837779]
[1736337372660,3.82028292,95196.0,95195.0,0.25828279]
[1736337373026,3.82028292,95196.0,95195.0,0.24876106]
[1736337373683,3.82128292,95196.0,95195.0,0.24876106]
[1736337373885,3.82128292,95196.0,95195.0,0.34876106]
[1736337374289,3.82128292,95196.0,95195.0,0.35828279]
[1736337375277,3.82028292,95196.0,95195.0,0.35828279]
[1736337375478,3.82128292,95196.0,95195.0,0.35828279]
[1736337376189,3.82028292,95196.0,95195.0,0.35828279]
[1736337381875,3.82028292,95196.0,95195.0,0.15828279]
[1736337382078,3.82028292,95196.0,95195.0,0.34876106]
[1736337382480,3.82028292,95196.0,95195.0,0.35828279]
[1736337384663,3.82028292,95196.0,95195.0,0.25828279]
[1736337384900,3.82028292,95196.0,95195.0,0.24876106]
[1736337385108,3.82028292,95196.0,95195.0,0.34876106]
[1736337385319,3.82028292,95196.0,95195.0,0.35828279]
[1736337387421,3.82028292,95196.0,95195.0,0.56648255]
[1736337387785,3.82028292,95196.0,95195.0,0.48558255]
[1736337388726,3.82028292,95196.0,95195.0,0.72147946]
[1736337388926,3.82028292,95196.0,95195.0,0.5941797]
[1736337389091,3.82028292,95196.0,95195.0,0.35828279]
[1736337389538,3.82028292,95196.0,95195.0,0.41752279]
[1736337392104,3.82028292,95196.0,95195.0,0.35828279]
[1736337398428,3.82028292,95196.0,95195.0,0.48558255]
[1736337401102,3.80173034,95196.0,95195.0,0.71738255]
[1736337401524,3.80173034,95196.0,95195.0,0.61738255]
[1736337401931,3.80173034,95196.0,95195.0,0.71738255]
[1736337402561,3.80173034,95196.0,95195.0,0.71838255]
[1736337403191,3.80173034,95196.0,95195.0,0.71738255]
[1736337403483,3.80173034,95196.0,95195.0,0.71838255]
[1736337403667,3.80173034,95196.0,95195.0,0.61838255]
[1736337403885,3.80173034,95196.0,95195.0,0.67754255]
[1736337404094,3.80173034,95196.0,95195.0,0.67654255]
[1736337405386,3.80173034,95196.0,95195.0,0.67754255]
[1736337405843,3.80173034,95196.0,95195.0,0.67654255]
[1736337406043,3.80173034,95196.0,95195.0,0.67754255]
[1736337406509,3.80173034,95196.0,95195.0,0.67654255]
[1736337406711,3.80173034,95196.0,95195.0,0.77654255]
[1736337407057,3.80173034,95196.0,95195.0,0.77754255]
[1736337408278,3.80173034,95196.0,95195.0,1.06068559]
[1736337408504,3.80173034,95196.0,95195.0,1.05968559]
[1736337409570,3.80173034,95196.0,95195.0,0.77954255]
[1736337410184,3.80173034,95196.0,95195.0,0.77654255]
[1736337410515,3.80173034,95196.0,95195.0,0.78054255]
[1736337412511,3.80173034,95196.0,95195.0,0.77654255]
[1736337412779,3.80173034,95196.0,95195.0,0.78054255]
[1736337418138,3.76169972,95196.0,95195.0,0.78054255]
[1736337419613,3.76169972,95196.0,95195.0,0.88054255]
[1736337425268,3.76169972,95196.0,95195.0,0.83124255]
[1736337427351,3.76169972,95196.0,95195.0,0.73124255]
[1736337427560,3.76169972,95196.0,95195.0,0.83124255]
[1736337430707,3.76169972,95196.0,95195.0,0.21858255]
[1736337430909,3.88669972,95196.0,95195.0,0.11428279]
[1736337431109,3.88669972,95196.0,95195.0,0.20476106]
[1736337431942,3.88669972,95196.0,95195.0,0.42336279]
[1736337432156,3.88669972,95196.0,95195.0,0.55066255]
[1736337432157,3.76169972,95196.0,95195.0,0.55066255]
[1736337432360,3.76169972,95196.0,95195.0,0.48758255]
[1736337432567,3.76169972,95196.0,95195.0,0.54766255]
[1736337433108,3.76169972,95196.0,95195.0,0.54666255]
[1736337433311,3.76169972,95196.0,95195.0,0.54766255]
[1736337433979,3.76169972,95196.0,95195.0,0.54666255]
[1736337434206,3.76169972,95196.0,95195.0,0.54766255]
[1736337435505,3.76169972,95196.0,95195.0,0.44666255]
[1736337435801,3.76169972,95196.0,95195.0,0.54866255]
[1736337436203,3.76169972,95196.0,95195.0,0.44666255]
[1736337436587,3.76169972,95196.0,95195.0,0.48858255]
[1736337436930,3.83739972,95196.0,95195.0,0.48045779]
[1736337437128,3.83739972,95196.0,95195.0,0.47945779]
[1736337437339,3.83739972,95196.0,95195.0,0.48045779]
[1736337437552,3.83739972,95196.0,95195.0,0.42036279]
[1736337437786,3.83739972,95196.0,95195.0,0.41084106]
[1736337438194,3.83739972,95196.0,95195.0,0.42036279]
[1736337439560,3.83739972,95196.0,95195.0,0.54766255]
[1736337442285,5.36639972,95196.0,95195.0,0.54766255]
[1736337442623,4.97119283,95196.0,95195.0,0.63814082]
[1736337442849,4.17197322,95196.0,95195.0,0.57906082]
[1736337443061,4.13197322,95196.0,95195.0,0.78366094]
[1736337443291,4.13197322,95196.0,95195.0,0.88366094]
[1736337443771,4.13197322,95196.0,95195.0,0.64766255]
[1736337444013,4.13197322,95196.0,95195.0,0.64666255]
[1736337444553,4.13197322,95196.0,95195.0,0.64966255]
[1736337445642,4.13197322,95196.0,95195.0,0.64666255]
[1736337446116,4.13197322,95196.0,95195.0,0.65066255]
[1736337446771,4.13197322,95196.0,95195.0,0.64666255]
[1736337447018,4.13197322,95196.0,95195.0,0.65066255]
[1736337447481,4.11096422,95196.0,95195.0,0.65066255]
[1736337447678,4.11096422,95196.0,95195.0,0.58758255]
[1736337447883,4.11059644,95196.0,95195.0,0.64666255]
[1736337449347,4.11059644,95196.0,95195.0,0.65066255]
[1736337449462,4.11059644,95196.0,95195.0,0.49158255]
[1736337449667,4.11059644,95196.0,95195.0,0.46458255]
[1736337449880,4.11059644,95196.0,95195.0,0.52866255]
[1736337450078,4.11059644,95196.0,95195.0,0.55166255]
[1736337450379,4.11059644,95196.0,95195.0,0.54666255]
[1736337450848,4.11059644,95196.0,95195.0,0.83287026]
[1736337452462,4.11059644,95196.0,95195.0,0.82987026]
[1736337453241,4.11059644,95196.0,95195.0,0.83287026]
[1736337453591,4.11059644,95196.0,95195.0,0.54666255]
[1736337454012,4.11059644,95196.0,95195.0,0.49058255]
[1736337454171,4.11059644,95196.0,95195.0,0.54966255]
[1736337455159,4.11059644,95196.0,95195.0,0.44966255]
[1736337455364,4.11059644,95196.0,95195.0,0.44666255]
[1736337455577,4.11059644,95196.0,95195.0,0.54666255]
[1736337455809,4.11059644,95196.0,95195.0,0.55066255]
[1736337456233,4.11047001,95196.0,95195.0,0.54666255]
[1736337456511,4.11047001,95196.0,95195.0,0.54966255]
[1736337457081,4.11047001,95196.0,95195.0,0.96485462]
[1736337457277,3.15747941,95196.0,95195.0,1.28835462]
[1736337457475,3.14604139,95196.0,95195.0,0.92927462]
[1736337457679,3.14604139,95196.0,95195.0,1.28835462]
[1736337457904,3.14604139,95196.0,95195.0,1.23227462]
[1736337458120,3.14604139,95196.0,95195.0,1.29135462]
[1736337458278,3.14604139,95196.0,95195.0,1.23227462]
[1736337458500,3.14604139,95196.0,95195.0,1.29135462]
[1736337458694,3.14604139,95196.0,95195.0,0.77316255]
[1736337458898,3.14604139,95196.0,95195.0,0.39058255]
[1736337459152,3.14604139,95196.0,95195.0,0.48758255]
[1736337459318,3.14604139,95196.0,95195.0,0.54666255]
[1736337459545,3.14604139,95196.0,95195.0,0.55166255]
[1736337460187,3.14604139,95196.0,95195.0,0.54666255]
[1736337460391,3.14604139,95196.0,95195.0,0.54966255]
[1736337460982,3.14604139,95196.0,95195.0,0.54666255]
[1736337461219,3.14604139,95196.0,95195.0,0.54966255]
[1736337462411,3.14604139,95196.0,95195.0,0.54666255]
[1736337462801,3.14604139,95196.0,95195.0,0.54966255]
[1736337463246,3.14604139,95196.0,95195.0,0.54666255]
[1736337463446,3.14604139,95196.0,95195.0,0.44666255]
[1736337463646,3.14604139,95196.0,95195.0,0.54966255]
[1736337463821,3.14604139,95196.0,95195.0,0.44966255]
[1736337464024,3.14604139,95196.0,95195.0,0.48758255]
[1736337464225,3.14604139,95196.0,95195.0,0.38758255]
[1736337464436,3.14604139,95196.0,95195.0,0.44958255]
[1736337464627,3.14604139,95196.0,95195.0,0.54958255]
[1736337465675,3.14604139,95196.0,95195.0,0.54658255]
[1736337465884,3.14604139,95196.0,95195.0,0.64658255]
[1736337466095,2.70691624,95196.0,95195.0,0.88038255]
[1736337466232,2.70691624,95196.0,95195.0,0.91315322]
[1736337466431,2.70691624,95196.0,95195.0,0.91015322]
[1736337466840,2.55951083,95196.0,95195.0,0.91315322]
[1736337467062,2.11304208,95196.0,95195.0,0.91315322]
[1736337467234,2.11304208,95196.0,95195.0,0.91015322]
[1736337467633,2.09203308,95196.0,95195.0,0.91415322]
[1736337467837,2.01255508,95196.0,95195.0,0.91415322]
[1736337468423,1.95307708,95196.0,95195.0,0.91415322]
[1736337468601,1.91907708,95196.0,95195.0,0.91415322]
[1736337468807,1.89806808,95196.0,95195.0,0.85515322]
[1736337469016,1.51048071,95196.0,95195.0,0.85115322]
[1736337469217,1.43248071,95196.0,95195.0,0.91615322]
[1736337469416,1.34431498,95196.0,95195.0,1.04422222]
[1736337469571,1.34431498,95196.0,95195.0,0.91615322]
[1736337469770,1.28128798,95196.0,95195.0,0.91015322]
[1736337470175,1.22926998,95196.0,95195.0,0.91515322]
[1736337470382,1.21826998,95196.0,95195.0,0.91515322]
[1736337470780,0.25215679,95196.0,95195.0,0.91015322]
[1736337470988,4.47653913,95206.0,95205.0,1.204973]
[1736337471194,4.47653913,95206.0,95205.0,1.62511749]
[1736337471195,4.20177026,95206.0,95205.0,1.62511749]
[1736337471378,4.20177026,95206.0,95205.0,1.63499936]
[1736337471581,4.06138249,95206.0,95205.0,1.63499936]
[1736337472209,3.87125396,95206.0,95205.0,1.63499936]
[1736337472410,3.81967842,95206.0,95205.0,1.69811936]
[1736337472611,3.73609342,95206.0,95205.0,1.75958416]
[1736337472821,3.69407942,95206.0,95205.0,1.69646416]
[1736337473027,3.65206542,95206.0,95205.0,1.69946416]
[1736337473236,3.44841821,95206.0,95205.0,1.69946416]
[1736337473443,3.44841821,95206.0,95205.0,1.64335098]
[1736337473669,3.406455,95206.0,95205.0,1.60335098]
[1736337473938,3.343434,95206.0,95205.0,1.59054798]
[1736337474146,3.343434,95206.0,95205.0,1.12968636]
[1736337474356,3.343434,95206.0,95205.0,1.08448636]
[1736337474596,2.89514692,95206.0,95205.0,2.05294682]
[1736337474815,2.79011192,95206.0,95205.0,1.44615632]
[1736337475236,2.78327611,95206.0,95205.0,1.99613926]
[1736337475444,2.64220726,95206.0,95205.0,1.93589294]
[1736337475649,2.55385896,95206.0,95205.0,1.96693512]
[1736337475903,2.45903552,95206.0,95205.0,2.01232025]
[1736337476108,2.43395109,95206.0,95205.0,1.96693512]
[1736337476492,2.30679569,95206.0,95205.0,2.00167929]
[1736337476687,2.24400598,95206.0,95205.0,2.00167929]
[1736337476825,2.18098498,95206.0,95205.0,2.00167929]
[1736337477034,2.15682257,95206.0,95205.0,2.00167929]
[1736337477239,1.86891294,95206.0,95205.0,2.00167929]
[1736337477462,1.86396294,95206.0,95205.0,2.00167929]
[1736337477666,1.7319441,95206.0,95205.0,2.00167929]
[1736337477868,1.6312031,95206.0,95205.0,2.00167929]
[1736337478070,1.59126704,95206.0,95205.0,2.00167929]
[1736337478507,1.57026704,95206.0,95205.0,2.00167929]
[1736337478742,0.88427235,95206.0,95205.0,2.17539929]
[1736337478997,0.59645225,95206.0,95205.0,2.17539929]
[1736337479253,0.36257687,95206.0,95205.0,2.17539929]
[1736337479496,0.25803231,95206.0,95205.0,2.1990146]
[1736337479736,0.027564,95206.0,95205.0,2.1990146]
[1736337479949,0.0257502,95230.0,95229.0,1.06002]
[1736337480279,0.02580889,95230.0,95229.0,1.32771976]
[1736337480503,0.02580889,95230.0,95229.0,1.38917353]
[1736337480717,0.00480689,95230.0,95229.0,1.38917353]
[1736337480923,8.9e-07,95230.0,95229.0,1.38917353]
[1736337481147,8.9e-07,95230.0,95229.0,1.38993459]
[1736337481585,8.9e-07,95230.0,95229.0,0.74953459]
[1736337481848,8.9e-07,95230.0,95229.0,0.84953459]
[1736337482101,8.9e-07,95230.0,95229.0,0.90853459]
[1736337482344,8.9e-07,95230.0,95229.0,0.91353459]
[1736337482575,8.9e-07,95230.0,95229.0,0.92391726]
[1736337482784,8.9e-07,95230.0,95229.0,0.91891726]
[1736337482931,8.9e-07,95230.0,95229.0,0.92391726]
[1736337483183,8.9e-07,95230.0,95229.0,0.86491726]
[1736337483342,8.9e-07,95230.0,95229.0,0.92391726]
[1736337486045,8.53e-05,95235.0,95234.0,0.760009]
[1736337486046,1.9e-07,95235.0,95234.0,0.760009]
[1736337486283,8.51e-05,95239.0,95238.0,0.45]
[1736337486516,8.51e-05,95239.0,95238.0,0.57729976]
[1736337486757,8.51e-05,95239.0,95238.0,0.58708536]
[1736337486758,1e-07,95239.0,95238.0,0.58708536]
[1736337487015,0.0829,95251.0,95244.0,0.682986]
[1736337487266,0.0829,95251.0,95244.0,0.78728576]
[1736337487474,0.0829,95251.0,95244.0,0.79705386]
[1736337488407,0.0829,95251.0,95244.0,1.07958477]
[1736337488920,0.0829,95251.0,95244.0,1.08358477]
[1736337490046,0.0829,95251.0,95244.0,0.85342714]
[1736337491106,0.0829,95251.0,95244.0,0.86368688]
[1736337491324,0.0829,95251.0,95250.0,0.559973]
[1736337491325,0.08289261,95251.0,95250.0,0.559973]
[1736337491529,0.08289261,95251.0,95250.0,0.72395382]
[1736337491771,0.08289261,95251.0,95250.0,0.80833468]
[1736337492331,0.08289261,95251.0,95250.0,0.74941468]
[1736337492553,0.08289261,95251.0,95250.0,0.78833468]
[1736337492801,0.13029261,95251.0,95250.0,0.68833468]
[1736337492981,0.13029261,95251.0,95250.0,0.78833468]
[1736337493206,0.13029261,95251.0,95250.0,0.78533468]
[1736337493744,0.13029261,95251.0,95250.0,0.78733468]
[1736337495100,0.13029261,95251.0,95250.0,0.68733468]
[1736337495661,0.13029261,95251.0,95250.0,0.78733468]
[1736337495930,0.13029261,95251.0,95250.0,0.9630923]
[1736337496137,0.13029261,95251.0,95250.0,1.0220123]
[1736337496790,0.13029261,95251.0,95250.0,0.78733468]
[1736337498123,0.13029261,95251.0,95250.0,0.72841468]
[1736337498570,0.13029261,95251.0,95250.0,0.9630923]
[1736337498809,0.13029261,95251.0,95250.0,1.0220123]
[1736337499208,0.13029261,95251.0,95250.0,0.78733468]
[1736337499425,0.13029261,95251.0,95250.0,0.72841468]
[1736337499638,0.13029261,95251.0,95250.0,0.47736168]
[1736337499811,0.13029261,95251.0,95250.0,0.57736168]
[1736337500226,0.13029261,95251.0,95250.0,0.31414192]
[1736337500643,0.13029261,95251.0,95250.0,0.37306192]
[1736337500871,0.13029261,95251.0,95250.0,0.06414192]
[1736337501073,0.13029261,95251.0,95250.0,0.22306192]
[1736337501308,0.13029261,95251.0,95250.0,0.06414192]
[1736337501515,0.13029261,95251.0,95250.0,0.06214192]
[1736337502097,0.12860743,95251.0,95250.0,0.16214192]
[1736337502681,0.12860743,95251.0,95250.0,0.06214192]
[1736337503095,0.12860743,95251.0,95250.0,0.16214192]
[1736337503918,0.14963542,95251.0,95250.0,0.16214192]
[1736337504252,0.12860743,95251.0,95250.0,0.16214192]
[1736337504864,0.12860743,95251.0,95250.0,0.37211492]
[1736337508412,0.12860743,95251.0,95250.0,0.62641468]
[1736337508622,0.12860743,95251.0,95250.0,0.72641468]
[1736337509023,0.12860743,95251.0,95250.0,0.71666407]
[1736337509227,0.12860743,95251.0,95250.0,0.7242067]
[1736337509947,0.08120743,95251.0,95250.0,0.7242067]
[1736337510149,0.08120743,95251.0,95250.0,1.00581985]
[1736337510792,0.08120743,95251.0,95250.0,0.7242067]
[1736337512032,0.08120743,95251.0,95250.0,0.7252067]
[1736337512828,0.08120743,95251.0,95250.0,0.7841267]
[1736337513627,0.08120743,95251.0,95250.0,0.67982694]
[1736337514600,0.08120743,95251.0,95250.0,0.62090694]
[1736337514803,0.08120743,95251.0,95250.0,0.67982694]
[1736337515250,0.12830743,95251.0,95250.0,0.26985394]
[1736337515683,0.12830743,95251.0,95250.0,0.06093394]
[1736337516101,0.12830743,95251.0,95250.0,0.05993394]
[1736337516516,0.12930743,95251.0,95250.0,0.05993394]
[1736337517624,0.12930743,95251.0,95250.0,0.15993394]
[1736337519412,0.12930743,95251.0,95250.0,0.05993394]
[1736337521513,0.12930743,95251.0,95250.0,0.06241394]
[1736337522526,0.12930743,95251.0,95250.0,0.06962369]
[1736337523759,0.12930743,95251.0,95250.0,0.01078369]
[1736337533069,0.001,95251.0,95250.0,0.52392345]
[1736337534239,0.001,95251.0,95250.0,0.55670353]
[1736337534935,0.001,95251.0,95250.0,0.49786353]
[1736337535171,0.001,95251.0,95250.0,0.55670353]
[1736337537323,0.001,95251.0,95250.0,0.55770353]
[1736337537728,0.001,95251.0,95250.0,0.55670353]
[1736337538146,0.001,95251.0,95250.0,0.55870353]
[1736337539113,0.001,95251.0,95250.0,0.66020353]
[1736337539322,0.001,95251.0,95250.0,0.66271774]
[1736337540109,8.52e-05,95265.0,95264.0,0.359942]
[1736337540319,0.00059319,95265.0,95264.0,0.5977829]
[1736337540523,0.00059319,95265.0,95264.0,0.60529493]
[1736337541611,0.12739319,95265.0,95264.0,0.60529493]
[1736337541827,0.1268,95262.0,95256.0,0.19032687]
[1736337542035,0.21,95238.0,95237.0,0.51086425]
[1736337542239,0.232951,95260.0,95223.0,0.1]
[1736337542240,0.20996,95256.0,95223.0,0.65730645]
[1736337542440,0.10429976,95255.0,95223.0,0.65730645]
[1736337542651,0.210024,95228.0,95223.0,0.55730645]
[1736337542890,0.0771,95232.0,95223.0,0.55730645]
[1736337543130,0.210022,95228.0,95227.0,0.00076091]
[1736337544957,0.0771,95232.0,95227.0,0.00076091]
[1736337545290,0.01030281,95240.0,95230.0,0.00076091]
[1736337545504,0.077,95256.0,95230.0,0.00076091]
[1736337545715,0.209984,95246.0,95233.0,0.210011]
[1736337545981,0.209984,95246.0,95237.0,1.5]
[1736337546233,0.209984,95246.0,95245.0,0.00076091]
[1736337547833,0.212984,95246.0,95245.0,0.00076091]
[1736337548414,0.209984,95246.0,95245.0,0.00076091]
[1736337549402,0.2965,95245.0,95201.0,0.28310357]
[1736337549605,0.287057,95212.0,95211.0,0.00022909]
[1736337549800,0.41435676,95212.0,95211.0,0.00022909]
[1736337550011,0.41435676,95212.0,95211.0,0.00098999]
[1736337550604,0.39378002,95212.0,95211.0,0.00098999]
[1736337551193,0.37078002,95212.0,95211.0,0.00098999]
[1736337551363,0.26648026,95212.0,95211.0,0.00098999]
[1736337551774,0.29044879,95212.0,95211.0,0.00098999]
[1736337552792,0.39474855,95212.0,95211.0,0.00098999]
[1736337553797,0.39174855,95212.0,95211.0,0.00098999]
[1736337554009,0.39674855,95212.0,95211.0,0.00098999]
[1736337554557,0.39174855,95212.0,95211.0,0.00098999]
[1736337554759,0.27148026,95212.0,95211.0,0.00098999]
[1736337556009,0.27148026,95212.0,95211.0,0.00769203]
[1736337556390,0.27148026,95212.0,95211.0,0.00098999]
[1736337556818,0.26648026,95212.0,95211.0,0.00098999]
[1736337557022,0.27148026,95212.0,95211.0,0.00098999]
[1736337557702,0.37078002,95212.0,95211.0,0.00098999]
[1736337557910,0.37478002,95212.0,95211.0,0.00098999]
[1736337558711,0.37078002,95212.0,95211.0,0.00098999]
[1736337560139,0.37578002,95212.0,95211.0,0.00098999]
[1736337565787,0.48146002,95212.0,95211.0,0.00098999]
[1736337571818,0.37578002,95212.0,95211.0,0.00098999]
[1736337572017,0.29878002,95212.0,95211.0,0.00098999]
[1736337573089,0.29378002,95212.0,95211.0,0.00098999]
[1736337573397,0.29878002,95212.0,95211.0,0.00098999]
[1736337573797,0.29378002,95212.0,95211.0,0.00098999]
[1736337574179,0.29878002,95212.0,95211.0,0.00098999]
[1736337576181,0.29862302,95212.0,95211.0,0.00098999]
[1736337581743,0.19432326,95212.0,95211.0,0.00098999]
[1736337582184,0.18932326,95212.0,95211.0,0.00098999]
[1736337582387,0.19432326,95212.0,95211.0,0.00098999]
[1736337583074,0.18932326,95212.0,95211.0,0.00098999]
[1736337583326,0.19332326,95212.0,95211.0,0.00098999]
[1736337583769,0.18932326,95212.0,95211.0,0.00298999]
[1736337585537,0.19332326,95212.0,95211.0,0.00298999]
[1736337586164,0.18932326,95212.0,95211.0,0.00298999]
[1736337586366,0.19232326,95212.0,95211.0,0.00298999]
[1736337586995,0.15932326,95212.0,95211.0,0.00298999]
[1736337587224,0.16332326,95212.0,95211.0,0.00298999]
[1736337589171,0.15932326,95212.0,95211.0,0.00298999]
[1736337589511,0.16232326,95212.0,95211.0,0.00298999]
[1736337592882,0.16232326,95212.0,95211.0,0.00222909]
[1736337593090,0.16232326,95212.0,95211.0,0.00298999]
[1736337594777,0.16232326,95212.0,95211.0,0.02420653]
[1736337597878,0.16232326,95212.0,95211.0,0.03094252]
[1736337598112,0.16232326,95212.0,95211.0,0.02420653]
[1736337603939,0.26662302,95212.0,95211.0,0.02420653]
[1736337604599,0.34612302,95212.0,95211.0,0.02420653]
[1736337605015,0.34599661,95212.0,95211.0,0.02420653]
[1736337607601,0.26649661,95212.0,95211.0,0.02420653]
[1736337610347,0.16219685,95212.0,95211.0,0.02420653]
[1736337614963,0.003,95212.0,95211.0,0.02420653]
[1736337616211,0.01037618,95215.0,95211.0,0.02420653]
[1736337616424,0.01037618,95215.0,95214.0,0.0007609]
[1736337616628,0.210051,95215.0,95214.0,0.0007609]
[1736337617462,0.213051,95215.0,95214.0,0.0007609]
[1736337617869,0.21005,95215.0,95214.0,0.0007609]
[1736337618281,0.21305,95215.0,95214.0,0.0007609]
[1736337625705,0.31734976,95215.0,95214.0,0.0007609]
[1736337631523,0.34034976,95215.0,95214.0,0.0007609]
[1736337631743,0.233053,95214.0,95211.0,1e-08]
[1736337631960,0.233057,95212.0,95211.0,1e-08]
[1736337632129,0.33735676,95212.0,95211.0,1e-08]
[1736337632368,0.33735676,95212.0,95211.0,0.00076089]
[1736337632580,0.42774732,95212.0,95211.0,0.00076089]
[1736337632777,0.57774732,95212.0,95211.0,0.00076089]
[1736337634244,0.58174732,95212.0,95211.0,0.00076089]
[1736337634457,0.21012,95184.0,95181.0,0.0492]
[1736337634655,0.21012,95184.0,95182.0,0.00691151]